{"text_format":"2","workbook":"xlsx","n_sheets":3,"sheets":["Sheet1","Sheet2","Sheet3"],"not_rendered":{"charts":0,"images":0,"macros":0,"external_links":0,"defined_names":0,"comments":0,"pivot_tables":0},"unopened":[],"bounds":{"document_bytes":16777216,"sheet_cells":100000,"run_cost":"one","rows_first":2000,"rows_last":500,"rows_between":2000,"halvings":0,"cell_chars":16384,"cell_head_chars":4096},"cells_cut":0,"cells_raw":0,"read":"whole","date_system":"1900"}

{"sheet":"Sheet1","index":0,"n_rows":44,"n_cols":17,"rows_kept":44,"cut":false,"hidden":false,"merged":[]}
["序号","中文名称","英文名称","数据类型","字段长度","敏感级别",{"$nulls":8},"acceptChannel"]
[0,"账期月","MONTH_ID","字符串",6,"非敏感",null,{"$f":"LOWER(C2)","v":"month_id"},{"$f":"\"varchar(\"&E2&\")\"","v":"varchar(6)"},{"$f":"H2&\" \"&I2&\" null,\"","v":"month_id varchar(6) null,"},{"$nulls":4},"acceptDep"]
[1,"账期日","DAY_ID","字符串",2,"非敏感",null,{"$f":"LOWER(C3)","v":"day_id"},{"$f":"\"varchar(\"&E3&\")\"","v":"varchar(2)"},{"$f":"H3&\" \"&I3&\" null,\"","v":"day_id varchar(2) null,"},{"$nulls":4},"acceptNo","mobile_no"]
[2,"服务请求ID","SERVICE_ID","字符串",300,"非敏感",null,"service_id","varchar(300)","service_id varchar(300) null,",{"$nulls":4},"acceptTime","create_time"]
[3,"接触记录ID","CONTACT_ID","字符串",300,"非敏感",null,"contact_id","varchar(300)","contact_id varchar(300) null,",{"$nulls":4},"acceptUserId"]
[4,"创建时间","CREATE_TIME","日期",8,"非敏感",null,"create_time","varchar(8)","create_time varchar(8) null,",{"$nulls":4},"callingNo","mobile_no"]
[5,"业务号码","MOBILE_NO","字符串",300,"一般敏感",null,"mobile_no","varchar(300)","mobile_no varchar(300) null,",{"$nulls":4},"city","code_cust_area","查字典表"]
[6,"服务请求类型名称1","SERVICE_TYPE_NAME1","字符串",300,"非敏感",null,"service_type_name1","varchar(300)","service_type_name1 varchar(300) null,",{"$nulls":4},"complaintNumber","contact_id"]
[7,"省分","PRO_NAME","字符串",30,"非敏感",null,"pro_name","varchar(30)","pro_name varchar(30) null,",{"$nulls":4},"countyCode","code_cust_area","查字典表"]
[8,"归属地市","CODE_CUST_AREA","字符串",30,"非敏感",null,"code_cust_area","varchar(30)","code_cust_area varchar(30) null,",{"$nulls":4},"cplAddress","compl_city_local"]
[9,"专业线","ZYX","字符串",300,"非敏感",null,"zyx","varchar(300)","zyx varchar(300) null,",{"$nulls":4},"cplContent","service_type_name1"]
[10,"两网两业节点名称","LWLY_NAME","字符串",300,"非敏感",null,"lwly_name","varchar(300)","lwly_name varchar(300) null,",{"$nulls":4},"cplLevel"]
[11,"大类名称","BIG_TYPE_NAME","字符串",300,"非敏感",null,"big_type_name","varchar(300)","big_type_name varchar(300) null,",{"$nulls":4},"cusManager"]
[12,"小类名称","SMALL_TYPE_NAME","字符串",300,"非敏感",null,"small_type_name","varchar(300)","small_type_name varchar(300) null,",{"$nulls":4},"cusManagerPho"]
[13,"月份","ACCT_MONTH","双精度",24,"一般敏感",null,"acct_month","varchar(24)","acct_month varchar(24) null,",{"$nulls":4},"custBrand"]
[14,"日期","DAY_ID1","字符串",6,"非敏感",null,"day_id1","varchar(6)","day_id1 varchar(6) null,",{"$nulls":4},"custLevel"]
[15,"关联投诉单","SHEET_NO","字符串",300,"非敏感",null,"sheet_no","varchar(300)","sheet_no varchar(300) null,",{"$nulls":4},"custName"]
[16,"区县","COMPL_CITY_LOCAL","字符串",300,"非敏感",null,"compl_city_local","varchar(300)","compl_city_local varchar(300) null,",{"$nulls":4},"custTel","mobile_no"]
[{"$nulls":14},"dealTaskId"]
[{"$nulls":14},"expectTime"]
[{"$nulls":14},"faultPhen"]
[{"$nulls":14},"faultTime","create_time"]
[{"$nulls":14},"fileList"]
[null,null,"河北客户体验管理系统移网网络体验明细日信息_HE_D_CEM_MOBILE_EXPERIENCE_LIST",{"$nulls":11},"flow_order_no"]
[{"$nulls":14},"fromSystem"]
[null,null,"HE_D_CEM_MOBILE_EXPERIENCE_LIST",{"$nulls":11},"gridName"]
[{"$nulls":14},"gridNum"]
[{"$nulls":14},"iotSource"]
[{"$nulls":14},"kfSn","contact_id"]
[{"$nulls":14},"kfopinion"]
[{"$nulls":14},"latitude"]
[{"$nulls":14},"longitude"]
[{"$nulls":14},"networkType"]
[{"$nulls":14},"orderTitle"]
[{"$nulls":14},"pkgName"]
[{"$nulls":14},"processList"]
[{"$nulls":14},"province",130000]
[{"$nulls":14},"realCity"]
[{"$nulls":14},"repeatFlag"]
[{"$nulls":14},"requestReplyTime"]
[{"$nulls":14},"specialPhoneType"]
[{"$nulls":14},"streamlineText"]
[{"$nulls":14},"totalLine"]
[{"$nulls":14},"workorderNo"]

{"sheet":"Sheet2","index":1,"n_rows":0,"n_cols":0,"rows_kept":0,"cut":false,"hidden":false,"merged":[]}

{"sheet":"Sheet3","index":2,"n_rows":0,"n_cols":0,"rows_kept":0,"cut":false,"hidden":false,"merged":[]}